[Event "Betsys MČR v online bleskovém šachu 2021"]
[Site "Chess.com"]
[Date "2021.04.17"]
[Round "4"]
[White "ReceptiveYoyo"]
[Black "Jindrich4321"]
[Result "0-1"]
[WhiteElo "1324"]
[BlackElo "1936"]
[TimeControl "180+1"]
[EndTime "9:37:16 PDT"]
[Termination "Uživatel Jindrich4321 zvítězil po vzdání soupeře"]

1. d4 {[%clk 0:03:00.9]} 1... f5 {[%clk 0:02:59.3]} 2. c4 {[%clk 0:02:47]} 2...
Nf6 {[%clk 0:02:58.9]} 3. e3 {[%clk 0:02:47.2]} 3... d6 {[%clk 0:02:58.4]} 4.
Nf3 {[%clk 0:02:43.1]} 4... g6 {[%clk 0:02:57.9]} 5. Nc3 {[%clk 0:02:41.4]} 5...
Bg7 {[%clk 0:02:58]} 6. Bd3 {[%clk 0:02:40.8]} 6... O-O {[%clk 0:02:58]} 7. O-O
{[%clk 0:02:40.4]} 7... c6 {[%clk 0:02:58.5]} 8. e4 {[%clk 0:02:35.6]} 8... fxe4
{[%clk 0:02:53.9]} 9. Nxe4 {[%clk 0:02:36.5]} 9... Nxe4 {[%clk 0:02:49.4]} 10.
Bxe4 {[%clk 0:02:37.4]} 10... Nd7 {[%clk 0:02:49.1]} 11. d5 {[%clk 0:02:31.3]}
11... c5 {[%clk 0:02:45.6]} 12. Bg5 {[%clk 0:02:20.5]} 12... Ne5 {[%clk
0:02:40.2]} 13. Nxe5 {[%clk 0:02:17]} 13... Bxe5 {[%clk 0:02:39.7]} 14. Qd2
{[%clk 0:02:14.3]} 14... Bf5 {[%clk 0:02:34.8]} 15. Bxf5 {[%clk 0:02:11.8]}
15... Rxf5 {[%clk 0:02:33.3]} 16. Be3 {[%clk 0:02:06.1]} 16... Qd7 {[%clk
0:02:27]} 17. f4 {[%clk 0:02:04.1]} 17... Bg7 {[%clk 0:02:23.4]} 18. Rab1 {[%clk
0:02:03.6]} 18... b5 {[%clk 0:02:18.3]} 19. b3 {[%clk 0:02:01.5]} 19... Rb8
{[%clk 0:02:12.2]} 20. Qd3 {[%clk 0:01:58.3]} 20... Rff8 {[%clk 0:02:09.3]} 21.
g4 {[%clk 0:01:44.4]} 21... Qxg4+ {[%clk 0:02:05.6]} 22. Kh1 {[%clk 0:01:41.6]}
22... Qf5 {[%clk 0:02:04.3]} 23. Qxf5 {[%clk 0:01:39.3]} 23... Rxf5 {[%clk
0:02:00.2]} 24. a4 {[%clk 0:01:39.7]} 24... bxa4 {[%clk 0:01:52.6]} 25. bxa4
{[%clk 0:01:39.9]} 25... Rff8 {[%clk 0:01:52.3]} 26. Kg2 {[%clk 0:01:29.7]}
26... Rfc8 {[%clk 0:01:47.6]} 27. Kf3 {[%clk 0:01:25.9]} 27... a6 {[%clk
0:01:47]} 28. Ke4 {[%clk 0:01:20.8]} 28... Rb4 {[%clk 0:01:45.8]} 29. Rxb4
{[%clk 0:01:17.8]} 29... cxb4 {[%clk 0:01:45]} 30. Kd3 {[%clk 0:01:17.1]} 30...
Kf7 {[%clk 0:01:30]} 31. Rb1 {[%clk 0:01:16.6]} 31... a5 {[%clk 0:01:29.1]} 32.
Bb6 {[%clk 0:01:11.5]} 32... Ra8 {[%clk 0:01:27.2]} 33. c5 {[%clk 0:01:08.9]}
33... dxc5 {[%clk 0:01:24]} 34. Bxc5 {[%clk 0:01:09.8]} 34... Bf6 {[%clk
0:01:12.4]} 35. Ke4 {[%clk 0:00:57.4]} 35... Ke8 {[%clk 0:01:11]} 36. f5 {[%clk
0:00:55.3]} 36... gxf5+ {[%clk 0:01:10.1]} 37. Kxf5 {[%clk 0:00:55.3]} 37... Kd7
{[%clk 0:01:09.7]} 38. Ke4 {[%clk 0:00:42.5]} 38... Ra6 {[%clk 0:01:07.9]} 39.
Kf5 {[%clk 0:00:42.1]} 39... Bc3 {[%clk 0:01:06.1]} 40. Ke4 {[%clk 0:00:39]}
40... Rh6 {[%clk 0:01:03.3]} 41. Kd3 {[%clk 0:00:35.4]} 41... Rxh2 {[%clk
0:00:57.4]} 42. Kc4 {[%clk 0:00:32.9]} 42... Rh5 {[%clk 0:00:51.4]} 43. Bb6
{[%clk 0:00:29.3]} 43... e6 {[%clk 0:00:44.6]} 44. dxe6+ {[%clk 0:00:23.5]}
44... Kxe6 {[%clk 0:00:43.3]} 45. Rf1 {[%clk 0:00:22.3]} 45... Kd7 {[%clk
0:00:35.6]} 46. Rf7+ {[%clk 0:00:19.5]} 46... Kc6 {[%clk 0:00:34.6]} 47. Bf2
{[%clk 0:00:15]} 47... h6 {[%clk 0:00:32.3]} 48. Rf6+ {[%clk 0:00:14.9]} 48...
Bxf6 {[%clk 0:00:31.2]} 0-1

[Event "Betsys MČR v online bleskovém šachu 2021"]
[Site "Chess.com"]
[Date "2021.04.17"]
[Round "4"]
[White "p_kana"]
[Black "Honzik1950"]
[Result "0-1"]
[WhiteElo "1789"]
[BlackElo "1513"]
[TimeControl "180+1"]
[EndTime "9:37:16 PDT"]
[Termination "Uživatel Honzik1950 zvítězil na čas"]

1. e4 {[%clk 0:03:00.9]} 1... a6 {[%clk 0:02:59.8]} 2. d4 {[%clk 0:02:57.8]}
2... b5 {[%clk 0:03:00.1]} 3. c4 {[%clk 0:02:55.5]} 3... b4 {[%clk 0:02:59.6]}
4. b3 {[%clk 0:02:53.5]} 4... e6 {[%clk 0:02:59.1]} 5. Bb2 {[%clk 0:02:52.9]}
5... Bb7 {[%clk 0:02:54.5]} 6. Nf3 {[%clk 0:02:47.8]} 6... d6 {[%clk 0:02:48.6]}
7. Bd3 {[%clk 0:02:46.2]} 7... Nf6 {[%clk 0:02:45.6]} 8. Qe2 {[%clk 0:02:44.8]}
8... Be7 {[%clk 0:02:45.1]} 9. O-O {[%clk 0:02:44.3]} 9... O-O {[%clk 0:02:45]}
10. Nbd2 {[%clk 0:02:42.5]} 10... Nbd7 {[%clk 0:02:44.1]} 11. Rad1 {[%clk
0:02:36.9]} 11... c5 {[%clk 0:02:42.8]} 12. d5 {[%clk 0:02:33.6]} 12... e5
{[%clk 0:02:42.8]} 13. Nh4 {[%clk 0:02:22.3]} 13... Nxd5 {[%clk 0:02:30.7]} 14.
exd5 {[%clk 0:02:13.7]} 14... Bxh4 {[%clk 0:02:30.8]} 15. f4 {[%clk 0:02:09.9]}
15... Re8 {[%clk 0:02:11.5]} 16. Qh5 {[%clk 0:01:57.7]} 16... g6 {[%clk
0:02:11.1]} 17. Qh6 {[%clk 0:01:48.9]} 17... Bf6 {[%clk 0:02:03.5]} 18. fxe5
{[%clk 0:01:43.7]} 18... Nxe5 {[%clk 0:01:55.5]} 19. Ne4 {[%clk 0:01:35.4]}
19... Bg7 {[%clk 0:01:47.7]} 20. Qc1 {[%clk 0:01:01]} 20... Nxd3 {[%clk
0:01:42.6]} 21. Rxd3 {[%clk 0:00:57.5]} 21... Rxe4 {[%clk 0:01:41.2]} 22. Bxg7
{[%clk 0:00:57]} 22... Kxg7 {[%clk 0:01:40.6]} 23. Rdf3 {[%clk 0:00:56]} 23...
Re7 {[%clk 0:01:37.6]} 24. Qg5 {[%clk 0:00:52.6]} 24... Qd7 {[%clk 0:01:14.8]}
25. Rh3 {[%clk 0:00:39.5]} 25... Rh8 {[%clk 0:01:05]} 26. Qf6+ {[%clk
0:00:31.8]} 26... Kg8 {[%clk 0:01:04.4]} 27. Rhf3 {[%clk 0:00:23.6]} 27... Bc8
{[%clk 0:00:56.8]} 28. h4 {[%clk 0:00:22.8]} 28... Qe8 {[%clk 0:00:54.6]} 29. h5
{[%clk 0:00:22.2]} 29... h6 {[%clk 0:00:32.9]} 30. Qxd6 {[%clk 0:00:12.8]} 30...
Bf5 {[%clk 0:00:24.5]} 31. Rxf5 {[%clk 0:00:08.5]} 31... gxf5 {[%clk 0:00:23.8]}
32. Rf3 {[%clk 0:00:07.1]} 32... Re1+ {[%clk 0:00:19.3]} 33. Kf2 {[%clk
0:00:05]} 33... Qe2+ {[%clk 0:00:18.3]} 34. Kg3 {[%clk 0:00:04.9]} 34... Qe5+
{[%clk 0:00:17.1]} 35. Qxe5 {[%clk 0:00:04.4]} 35... Rxe5 {[%clk 0:00:17.3]} 36.
Kf4 {[%clk 0:00:04.3]} 36... f6 {[%clk 0:00:15.2]} 0-1

[Event "Betsys MČR v online bleskovém šachu 2021"]
[Site "Chess.com"]
[Date "2021.04.17"]
[Round "4"]
[White "FMD-MP"]
[Black "CrisBenton4"]
[Result "0-1"]
[WhiteElo "1749"]
[BlackElo "1439"]
[TimeControl "180+1"]
[EndTime "9:37:16 PDT"]
[Termination "Uživatel CrisBenton4 zvítězil na čas"]

1. c4 {[%clk 0:02:59.8]} 1... Nf6 {[%clk 0:02:58.2]} 2. Nc3 {[%clk 0:02:59.1]}
2... g6 {[%clk 0:02:58.4]} 3. g3 {[%clk 0:02:58.3]} 3... Bg7 {[%clk 0:02:58.4]}
4. Bg2 {[%clk 0:02:58.2]} 4... c5 {[%clk 0:02:58.3]} 5. d3 {[%clk 0:02:57.7]}
5... d6 {[%clk 0:02:58.5]} 6. e4 {[%clk 0:02:55.4]} 6... O-O {[%clk 0:02:57.3]}
7. Nge2 {[%clk 0:02:55.7]} 7... Nc6 {[%clk 0:02:56.3]} 8. O-O {[%clk 0:02:55.7]}
8... Bd7 {[%clk 0:02:53.6]} 9. h3 {[%clk 0:02:56]} 9... h6 {[%clk 0:02:43.9]}
10. Kh2 {[%clk 0:02:56.2]} 10... Rc8 {[%clk 0:02:42]} 11. Rb1 {[%clk 0:02:55.6]}
11... a6 {[%clk 0:02:38.9]} 12. a4 {[%clk 0:02:51.2]} 12... Ne5 {[%clk
0:02:18.1]} 13. f4 {[%clk 0:02:49.2]} 13... Nc6 {[%clk 0:02:16]} 14. Be3 {[%clk
0:02:41.6]} 14... Nb4 {[%clk 0:02:11.6]} 15. Qd2 {[%clk 0:02:26.7]} 15... Nc6
{[%clk 0:01:58.5]} 16. f5 {[%clk 0:02:22.3]} 16... g5 {[%clk 0:01:51.4]} 17. Ng1
{[%clk 0:01:35.7]} 17... Qc7 {[%clk 0:01:33.4]} 18. Nf3 {[%clk 0:01:34.3]} 18...
Nh5 {[%clk 0:01:25.3]} 19. h4 {[%clk 0:01:28]} 19... f6 {[%clk 0:00:56]} 20. Nd5
{[%clk 0:01:26.4]} 20... Qd8 {[%clk 0:00:43.6]} 21. hxg5 {[%clk 0:01:25.9]}
21... fxg5 {[%clk 0:00:42.2]} 22. b3 {[%clk 0:00:42.8]} 22... Nf6 {[%clk
0:00:36]} 23. Qf2 {[%clk 0:00:29.8]} 23... Ng4+ {[%clk 0:00:34]} 24. Kg1 {[%clk
0:00:22.1]} 24... Nxf2 {[%clk 0:00:34.1]} 25. Rxf2 {[%clk 0:00:20.2]} 25... Ne5
{[%clk 0:00:33.3]} 26. Rbf1 {[%clk 0:00:15.3]} 26... Ng4 {[%clk 0:00:31.4]} 27.
Re2 {[%clk 0:00:14.2]} 27... Nxe3 {[%clk 0:00:30.9]} 28. Nxe3 {[%clk 0:00:13.1]}
28... Bc6 {[%clk 0:00:31.5]} 29. Nh2 {[%clk 0:00:11.2]} 29... Bd4 {[%clk
0:00:29.7]} 30. Ng4 {[%clk 0:00:09.6]} 30... Kh7 {[%clk 0:00:27.9]} 31. Ref2
{[%clk 0:00:06.7]} 31... Bxe3 {[%clk 0:00:28]} 32. Nxe3 {[%clk 0:00:06.1]} 32...
Bd7 {[%clk 0:00:26.7]} 33. Bh3 {[%clk 0:00:02.9]} 33... Qc7 {[%clk 0:00:26]} 34.
Kh2 {[%clk 0:00:02.5]} 34... Rf6 {[%clk 0:00:25.8]} 35. Kg2 {[%clk 0:00:02]}
35... Rcf8 {[%clk 0:00:25.3]} 36. Kh2 {[%clk 0:00:02.5]} 36... Qd8 {[%clk
0:00:25.4]} 37. Bg2 {[%clk 0:00:02.8]} 37... e6 {[%clk 0:00:23.7]} 38. fxe6
{[%clk 0:00:01.9]} 38... Rxf2 {[%clk 0:00:22.6]} 39. exd7 {[%clk 0:00:01.1]}
39... Qxd7 {[%clk 0:00:21.6]} 0-1

[Event "Betsys MČR v online bleskovém šachu 2021"]
[Site "Chess.com"]
[Date "2021.04.17"]
[Round "4"]
[White "jsebesta"]
[Black "zaciname"]
[Result "1-0"]
[WhiteElo "1612"]
[BlackElo "724"]
[TimeControl "180+1"]
[EndTime "9:37:16 PDT"]
[Termination "Uživatel jsebesta zvítězil matem"]

1. e4 {[%clk 0:03:00.9]} 1... e5 {[%clk 0:02:58.9]} 2. Nf3 {[%clk 0:03:00.6]}
2... Nf6 {[%clk 0:02:59.3]} 3. Nxe5 {[%clk 0:02:59.2]} 3... Qe7 {[%clk
0:02:58.9]} 4. d4 {[%clk 0:02:55]} 4... d6 {[%clk 0:02:58.7]} 5. Nf3 {[%clk
0:02:54.6]} 5... Nxe4 {[%clk 0:02:58.1]} 6. Be3 {[%clk 0:02:51.2]} 6... Nf6
{[%clk 0:02:52.3]} 7. Nc3 {[%clk 0:02:48.5]} 7... Be6 {[%clk 0:02:51.8]} 8. d5
{[%clk 0:02:44.1]} 8... Bd7 {[%clk 0:02:48.3]} 9. Nb5 {[%clk 0:02:35.1]} 9...
Qd8 {[%clk 0:02:41.4]} 10. a4 {[%clk 0:02:20.6]} 10... Be7 {[%clk 0:02:37.8]}
11. Be2 {[%clk 0:02:17.3]} 11... Bxb5 {[%clk 0:02:36.7]} 12. Bxb5+ {[%clk
0:02:17]} 12... c6 {[%clk 0:02:32.9]} 13. dxc6 {[%clk 0:02:15.6]} 13... bxc6
{[%clk 0:02:31.4]} 14. Bd3 {[%clk 0:02:13.2]} 14... O-O {[%clk 0:02:28]} 15. O-O
{[%clk 0:02:12.8]} 15... Nbd7 {[%clk 0:02:20.3]} 16. Nd4 {[%clk 0:02:09.7]}
16... Qc7 {[%clk 0:02:17.9]} 17. Nf5 {[%clk 0:01:59.2]} 17... Rfe8 {[%clk
0:02:08.4]} 18. Re1 {[%clk 0:01:57.3]} 18... d5 {[%clk 0:02:05.6]} 19. g3 {[%clk
0:01:47.7]} 19... Qe5 {[%clk 0:01:51.5]} 20. Bf4 {[%clk 0:01:41.7]} 20... Qxb2
{[%clk 0:01:43.5]} 21. Nxe7+ {[%clk 0:01:41]} 21... Kf8 {[%clk 0:01:37.3]} 22.
Nxc6 {[%clk 0:01:36.3]} 22... Qc3 {[%clk 0:01:32.7]} 23. Bd6+ {[%clk 0:01:25.3]}
23... Kg8 {[%clk 0:01:29.2]} 24. Ne7+ {[%clk 0:01:22.4]} 24... Kh8 {[%clk
0:01:25.9]} 25. Qf3 {[%clk 0:01:04.3]} 25... Rac8 {[%clk 0:01:17.6]} 26. Qf5
{[%clk 0:00:40.1]} 26... Nf8 {[%clk 0:00:53.6]} 27. Rf1 {[%clk 0:00:20.5]} 27...
Ng6 {[%clk 0:00:51.4]} 28. Nxc8 {[%clk 0:00:18.6]} 28... Re6 {[%clk 0:00:38.4]}
29. Bf4 {[%clk 0:00:14.4]} 29... Nxf4 {[%clk 0:00:34.2]} 30. Qxf4 {[%clk
0:00:14.8]} 30... Nh5 {[%clk 0:00:31.5]} 31. Qb8 {[%clk 0:00:14]} 31... g6
{[%clk 0:00:29.1]} 32. Ne7+ {[%clk 0:00:12]} 32... Kg7 {[%clk 0:00:26.9]} 33.
Qg8+ {[%clk 0:00:10.8]} 33... Kf6 {[%clk 0:00:25.2]} 34. Nxd5+ {[%clk 0:00:11]}
34... Ke5 {[%clk 0:00:20.5]} 35. Nxc3 {[%clk 0:00:11.4]} 35... Kd4 {[%clk
0:00:19.2]} 36. Qd8+ {[%clk 0:00:11.1]} 36... Kxc3 {[%clk 0:00:16.5]} 37. Qc7+
{[%clk 0:00:11.6]} 37... Kb2 {[%clk 0:00:12.6]} 38. Qc4 {[%clk 0:00:10.6]} 38...
Nxg3 {[%clk 0:00:09.6]} 39. Qb3# {[%clk 0:00:10.5]} 1-0

[Event "Betsys MČR v online bleskovém šachu 2021"]
[Site "Chess.com"]
[Date "2021.04.17"]
[Round "4"]
[White "Jaja15F"]
[Black "Molefancier"]
[Result "1-0"]
[WhiteElo "1120"]
[BlackElo "1062"]
[TimeControl "180+1"]
[EndTime "9:37:16 PDT"]
[Termination "Uživatel Jaja15F zvítězil matem"]

1. d4 {[%clk 0:03:00]} 1... Nf6 {[%clk 0:02:58.4]} 2. Nf3 {[%clk 0:02:57.7]}
2... e6 {[%clk 0:02:56.5]} 3. e3 {[%clk 0:02:54.9]} 3... d5 {[%clk 0:02:55.9]}
4. Bd3 {[%clk 0:02:52.4]} 4... c5 {[%clk 0:02:51.6]} 5. Bd2 {[%clk 0:02:49.9]}
5... cxd4 {[%clk 0:02:49.2]} 6. exd4 {[%clk 0:02:49.1]} 6... Nc6 {[%clk
0:02:47.4]} 7. Nc3 {[%clk 0:02:46.8]} 7... a6 {[%clk 0:02:40.4]} 8. O-O {[%clk
0:02:45]} 8... Be7 {[%clk 0:02:36.7]} 9. Be3 {[%clk 0:02:44.2]} 9... Qd6 {[%clk
0:02:26.7]} 10. Re1 {[%clk 0:02:40.8]} 10... Ng4 {[%clk 0:02:24.3]} 11. h3
{[%clk 0:02:39]} 11... Nxe3 {[%clk 0:02:17.2]} 12. Rxe3 {[%clk 0:02:37.3]} 12...
O-O {[%clk 0:02:17]} 13. Qe2 {[%clk 0:02:32.1]} 13... Bf6 {[%clk 0:02:08.6]} 14.
Ne5 {[%clk 0:02:23.2]} 14... Nxd4 {[%clk 0:02:03.5]} 15. Qh5 {[%clk 0:02:00.9]}
15... g6 {[%clk 0:01:47.7]} 16. Nxg6 {[%clk 0:01:50.9]} 16... fxg6 {[%clk
0:01:33.1]} 17. Qg4 {[%clk 0:01:36.2]} 17... Nf5 {[%clk 0:01:25.3]} 18. Bxf5
{[%clk 0:01:29.5]} 18... exf5 {[%clk 0:01:25]} 19. Qf3 {[%clk 0:01:26.2]} 19...
d4 {[%clk 0:01:21.6]} 20. Rd3 {[%clk 0:01:23.6]} 20... Qb6 {[%clk 0:01:10.8]}
21. Nd5 {[%clk 0:01:16.2]} 21... Qxb2 {[%clk 0:01:06.4]} 22. Nxf6+ {[%clk
0:01:13.9]} 22... Rxf6 {[%clk 0:01:03.2]} 23. Qd5+ {[%clk 0:01:10.1]} 23... Be6
{[%clk 0:00:55.8]} 24. Qxd4 {[%clk 0:00:54.7]} 24... Qxc2 {[%clk 0:00:47.9]} 25.
Rc3 {[%clk 0:00:43.1]} 25... Qb2 {[%clk 0:00:40.3]} 26. Kh2 {[%clk 0:00:23.9]}
26... Raf8 {[%clk 0:00:25.2]} 27. Rac1 {[%clk 0:00:18.4]} 27... Qxa2 {[%clk
0:00:22.4]} 28. Rc4 {[%clk 0:00:14.4]} 28... b5 {[%clk 0:00:19.1]} 29. Rc6
{[%clk 0:00:13.2]} 29... Bc4 {[%clk 0:00:12.7]} 30. Rxf6 {[%clk 0:00:10.7]}
30... Rxf6 {[%clk 0:00:08.9]} 31. Qxf6 {[%clk 0:00:10.2]} 31... Bf7 {[%clk
0:00:06.9]} 32. Rc8+ {[%clk 0:00:07.2]} 32... Be8 {[%clk 0:00:04.9]} 33. Rxe8#
{[%clk 0:00:05.2]} 1-0

[Event "Betsys MČR v online bleskovém šachu 2021"]
[Site "Chess.com"]
[Date "2021.04.17"]
[Round "4"]
[White "JustFilip05"]
[Black "Clockwork7orange"]
[Result "0-1"]
[WhiteElo "2136"]
[BlackElo "2312"]
[TimeControl "180+1"]
[EndTime "9:37:17 PDT"]
[Termination "Uživatel Clockwork7orange zvítězil po vzdání soupeře"]

1. Nf3 {[%clk 0:03:00.9]} 1... c5 {[%clk 0:02:59.9]} 2. b3 {[%clk 0:02:58.6]}
2... Nc6 {[%clk 0:03:00.8]} 3. Bb2 {[%clk 0:02:58.6]} 3... d6 {[%clk 0:02:59.6]}
4. e3 {[%clk 0:02:58.9]} 4... e5 {[%clk 0:02:59.2]} 5. d4 {[%clk 0:02:52]} 5...
cxd4 {[%clk 0:02:59.3]} 6. exd4 {[%clk 0:02:52.1]} 6... e4 {[%clk 0:03:00.2]} 7.
Nfd2 {[%clk 0:02:52]} 7... f5 {[%clk 0:02:58.5]} 8. Be2 {[%clk 0:02:45.4]} 8...
Nf6 {[%clk 0:02:58.3]} 9. O-O {[%clk 0:02:43.3]} 9... Be7 {[%clk 0:02:58.2]} 10.
c4 {[%clk 0:02:33.9]} 10... O-O {[%clk 0:02:57.4]} 11. Re1 {[%clk 0:02:32.5]}
11... Kh8 {[%clk 0:02:56.8]} 12. Nf1 {[%clk 0:02:31.8]} 12... d5 {[%clk
0:02:56]} 13. c5 {[%clk 0:02:26.6]} 13... f4 {[%clk 0:02:55.1]} 14. Bc1 {[%clk
0:01:59.8]} 14... Qe8 {[%clk 0:02:53.2]} 15. Bxf4 {[%clk 0:01:58.6]} 15... Qg6
{[%clk 0:02:51.2]} 16. Be3 {[%clk 0:01:56.7]} 16... Ng4 {[%clk 0:02:49.5]} 17.
Nc3 {[%clk 0:01:36.4]} 17... Be6 {[%clk 0:02:47.4]} 18. Ng3 {[%clk 0:01:34.5]}
18... h5 {[%clk 0:02:44.6]} 19. Qd2 {[%clk 0:00:55.3]} 19... h4 {[%clk
0:02:42.3]} 20. Bxg4 {[%clk 0:00:55.2]} 20... Qxg4 {[%clk 0:02:38.3]} 21. Nge2
{[%clk 0:00:39.2]} 21... h3 {[%clk 0:02:37.6]} 22. Ng3 {[%clk 0:00:38.9]} 22...
hxg2 {[%clk 0:02:29]} 23. Qd1 {[%clk 0:00:39]} 23... Qxd1 {[%clk 0:02:26.1]} 24.
Raxd1 {[%clk 0:00:38.5]} 24... Rad8 {[%clk 0:02:05.9]} 25. Kxg2 {[%clk
0:00:38.2]} 25... Bg4 {[%clk 0:02:06]} 26. Rd2 {[%clk 0:00:37.4]} 26... Bf3+
{[%clk 0:02:05.9]} 27. Kg1 {[%clk 0:00:37.4]} 27... Bh4 {[%clk 0:02:01.7]} 28.
Nce2 {[%clk 0:00:26]} 28... g5 {[%clk 0:02:00.5]} 29. Kf1 {[%clk 0:00:24]} 29...
Rf7 {[%clk 0:01:58.1]} 30. Ng1 {[%clk 0:00:20.8]} 30... Bg4 {[%clk 0:01:53]} 31.
h3 {[%clk 0:00:20.6]} 31... Be6 {[%clk 0:01:49.6]} 32. Kg2 {[%clk 0:00:20.9]}
32... Kg7 {[%clk 0:01:48.2]} 33. N1e2 {[%clk 0:00:19.7]} 33... Kg6 {[%clk
0:01:46.3]} 34. Nc3 {[%clk 0:00:16.6]} 34... Rh8 {[%clk 0:01:44.9]} 35. Rf1
{[%clk 0:00:15.9]} 35... Bxg3 {[%clk 0:01:43.5]} 36. Kxg3 {[%clk 0:00:03.8]}
36... Rxh3+ {[%clk 0:01:43]} 37. Kg2 {[%clk 0:00:03.6]} 37... Bg4 {[%clk
0:01:33.9]} 38. f4 {[%clk 0:00:03.4]} 38... exf3+ {[%clk 0:01:32.5]} 39. Kf2
{[%clk 0:00:01.6]} 39... Rf5 {[%clk 0:01:19.8]} 40. Ke1 {[%clk 0:00:01.3]} 40...
Bh5 {[%clk 0:01:18.7]} 41. Rdf2 {[%clk 0:00:02]} 41... g4 {[%clk 0:01:18.5]} 42.
Kd2 {[%clk 0:00:02.7]} 42... g3 {[%clk 0:01:18.3]} 43. Rg1 {[%clk 0:00:02.9]}
43... Kf7 {[%clk 0:01:17.3]} 44. Rff1 {[%clk 0:00:02.9]} 44... f2 {[%clk
0:01:15.1]} 45. Rg2 {[%clk 0:00:03.1]} 45... Bf3 {[%clk 0:01:15.1]} 46. Rgxf2
{[%clk 0:00:02.5]} 46... gxf2 {[%clk 0:01:14.8]} 47. Rxf2 {[%clk 0:00:03.4]}
47... Ke6 {[%clk 0:01:11.8]} 48. Nb5 {[%clk 0:00:02.5]} 48... Rfh5 {[%clk
0:01:08.3]} 49. Nc7+ {[%clk 0:00:02.2]} 49... Kd7 {[%clk 0:01:07.6]} 50. Nb5
{[%clk 0:00:02]} 50... Rh2 {[%clk 0:01:05.2]} 51. Kd3 {[%clk 0:00:01.5]} 51...
Be4+ {[%clk 0:01:04.1]} 52. Kc3 {[%clk 0:00:02.1]} 52... Rxf2 {[%clk 0:01:04.9]}
53. Bxf2 {[%clk 0:00:02.8]} 53... Rh3+ {[%clk 0:01:05.1]} 54. Kb2 {[%clk
0:00:02.9]} 54... a6 {[%clk 0:01:06]} 55. Nc3 {[%clk 0:00:03.2]} 55... Rh2
{[%clk 0:01:06.5]} 56. Nd1 {[%clk 0:00:03.8]} 56... Bf3 {[%clk 0:01:05.8]} 57.
Kc3 {[%clk 0:00:02.6]} 57... Bxd1 {[%clk 0:01:05.7]} 0-1

[Event "Betsys MČR v online bleskovém šachu 2021"]
[Site "Chess.com"]
[Date "2021.04.17"]
[Round "4"]
[White "OndrejBorkovec"]
[Black "MatyldaCZ"]
[Result "1-0"]
[WhiteElo "1510"]
[BlackElo "1380"]
[TimeControl "180+1"]
[EndTime "9:37:20 PDT"]
[Termination "Uživatel OndrejBorkovec zvítězil na čas"]

1. d4 {[%clk 0:03:00.9]} 1... Nf6 {[%clk 0:02:59.3]} 2. c4 {[%clk 0:03:00.7]}
2... d6 {[%clk 0:02:59.3]} 3. Nc3 {[%clk 0:03:00.9]} 3... g6 {[%clk 0:02:59.7]}
4. Bg5 {[%clk 0:03:00]} 4... Bg7 {[%clk 0:02:59.8]} 5. Nf3 {[%clk 0:02:59.8]}
5... c6 {[%clk 0:02:58.5]} 6. e3 {[%clk 0:03:00.1]} 6... Nbd7 {[%clk 0:02:58.8]}
7. Bd3 {[%clk 0:02:59.7]} 7... O-O {[%clk 0:02:57.9]} 8. O-O {[%clk 0:02:59]}
8... e5 {[%clk 0:02:58.1]} 9. Qc2 {[%clk 0:02:54.9]} 9... Re8 {[%clk 0:02:56]}
10. dxe5 {[%clk 0:02:53.2]} 10... dxe5 {[%clk 0:02:55.7]} 11. Ne4 {[%clk
0:02:48.6]} 11... h6 {[%clk 0:02:50]} 12. Bh4 {[%clk 0:02:45.1]} 12... Qc7
{[%clk 0:02:35.2]} 13. Bg3 {[%clk 0:02:42.6]} 13... Nxe4 {[%clk 0:02:32.6]} 14.
Bxe4 {[%clk 0:02:42.5]} 14... Nc5 {[%clk 0:02:27.4]} 15. Rac1 {[%clk 0:02:35.7]}
15... Nxe4 {[%clk 0:02:20.8]} 16. Qxe4 {[%clk 0:02:36.6]} 16... Bf5 {[%clk
0:02:20.8]} 17. Qh4 {[%clk 0:02:30.7]} 17... g5 {[%clk 0:02:17.3]} 18. Qh5
{[%clk 0:02:29.3]} 18... Bg6 {[%clk 0:02:13.1]} 19. Qg4 {[%clk 0:02:29.3]} 19...
f5 {[%clk 0:02:12.4]} 20. Qh3 {[%clk 0:02:27.6]} 20... g4 {[%clk 0:02:09.3]} 21.
Bxe5 {[%clk 0:02:20.5]} 21... Qxe5 {[%clk 0:02:00.1]} 22. Nxe5 {[%clk
0:02:19.9]} 22... gxh3 {[%clk 0:01:59.8]} 23. Nxg6 {[%clk 0:02:20]} 23... hxg2
{[%clk 0:01:57.1]} 24. Kxg2 {[%clk 0:02:19.5]} 24... Bxb2 {[%clk 0:01:51.5]} 25.
Rb1 {[%clk 0:02:18.2]} 25... Bf6 {[%clk 0:01:48.3]} 26. Rg1 {[%clk 0:02:16.8]}
26... Kf7 {[%clk 0:01:44.8]} 27. Kf3 {[%clk 0:02:16.3]} 27... Rg8 {[%clk
0:01:40.1]} 28. Rxb7+ {[%clk 0:02:15.6]} 28... Ke8 {[%clk 0:01:35.1]} 29. Rg3
{[%clk 0:02:08.7]} 29... Bg5 {[%clk 0:01:30.4]} 30. Nf4 {[%clk 0:01:59.7]} 30...
Kd8 {[%clk 0:01:06.9]} 31. h4 {[%clk 0:01:58.3]} 31... Kc8 {[%clk 0:01:02.7]}
32. Rf7 {[%clk 0:01:57.5]} 32... a5 {[%clk 0:00:42.7]} 33. hxg5 {[%clk
0:01:55.4]} 33... hxg5 {[%clk 0:00:42.4]} 34. Ne6 {[%clk 0:01:54.1]} 34... g4+
{[%clk 0:00:41.3]} 35. Kf4 {[%clk 0:01:53.6]} 35... a4 {[%clk 0:00:39.4]} 36.
Rc7+ {[%clk 0:01:51]} 36... Kb8 {[%clk 0:00:39.4]} 37. Rxc6 {[%clk 0:01:50.7]}
37... Ra5 {[%clk 0:00:37.2]} 38. Rc5 {[%clk 0:01:41.7]} 38... Ra6 {[%clk
0:00:36.4]} 39. Kxf5 {[%clk 0:01:35.9]} 39... Re8 {[%clk 0:00:24.9]} 40. Nd4
{[%clk 0:01:28.5]} 40... Rf8+ {[%clk 0:00:22.1]} 41. Kxg4 {[%clk 0:01:28.1]}
41... Rg6+ {[%clk 0:00:22.1]} 42. Kh3 {[%clk 0:01:28.1]} 42... Rh8+ {[%clk
0:00:19.1]} 43. Kg2 {[%clk 0:01:28]} 43... Rgh6 {[%clk 0:00:18.6]} 44. Rb5+
{[%clk 0:01:26.1]} 44... Ka7 {[%clk 0:00:14.9]} 45. Ra5+ {[%clk 0:01:26.1]}
45... Kb7 {[%clk 0:00:15]} 46. Rg7+ {[%clk 0:01:23.1]} 46... Kb6 {[%clk
0:00:13.9]} 47. Rb5+ {[%clk 0:01:23.2]} 47... Ka6 {[%clk 0:00:14.3]} 48. Rbb7
{[%clk 0:01:17.8]} 48... Rh2+ {[%clk 0:00:12.4]} 49. Kf3 {[%clk 0:01:17.8]}
49... R8h3+ {[%clk 0:00:10.8]} 50. Ke2 {[%clk 0:01:17.5]} 50... Rh6 {[%clk
0:00:06.6]} 51. Ra7+ {[%clk 0:01:15.5]} 51... Kb6 {[%clk 0:00:07]} 52. Rgb7+
{[%clk 0:01:14.9]} 52... Kc5 {[%clk 0:00:07.1]} 53. Ra5+ {[%clk 0:01:12.6]}
53... Kxc4 {[%clk 0:00:06.9]} 54. Rc7+ {[%clk 0:01:10.5]} 54... Kb4 {[%clk
0:00:06]} 55. Rb5+ {[%clk 0:01:10.4]} 55... Ka3 {[%clk 0:00:05.7]} 56. Rc3+
{[%clk 0:01:10]} 56... Kxa2 {[%clk 0:00:06]} 57. Ra5 {[%clk 0:01:06]} 57... Rf6
{[%clk 0:00:01.3]} 58. Rxa4+ {[%clk 0:01:05.5]} 58... Kb1 {[%clk 0:00:01.9]} 59.
Rb4+ {[%clk 0:01:05.1]} 1-0